bitfinex/quotes_SOLUSD_20250305
["timestamp","ask_amount","ask_price","bid_price","bid_amount"]
[1741137432674,81.8,143.77,143.72,26.30204699]
[1741137433570,6.956,143.76,143.72,26.30204699]
[1741137433879,88.756,143.76,143.71,26.30204699]
[1741137434086,108.24216157,143.75,143.69,26.30204699]
[1741137434250,81.8,143.74,143.69,26.30204699]
[1741137434451,81.8,143.74,143.7,26.30204699]
[1741137434675,81.8,143.74,143.69,26.30204699]
[1741137435173,81.8,143.74,143.7,26.30204699]
[1741137435379,81.8,143.74,143.71,26.30204699]
[1741137435576,88.7571,143.74,143.7,26.30204699]
[1741137435765,81.8,143.74,143.7,26.30204699]
[1741137436282,81.8,143.74,143.69,26.30204699]
[1741137436470,88.7572,143.74,143.68,26.30204699]
[1741137436778,108.10204699,143.73,143.67,26.30204699]
[1741137437075,134.54420856,143.72,143.65,26.30204699]
[1741137437260,81.8,143.71,143.65,26.30204699]
[1741137437457,81.8,143.71,143.66,26.30204699]
[1741137437671,81.8,143.71,143.64,6.9618]
[1741137437672,81.8,143.71,143.7,26.30204699]
[1741137437873,81.8,143.74,143.7,26.30204699]
[1741137438271,81.8,143.74,143.69,26.30204699]
[1741137438685,81.8,143.74,143.7,26.30204699]
[1741137439984,0.03,143.71,143.7,26.30204699]
[1741137441485,0.03,143.71,143.67,6.9603]
[1741137441792,0.03,143.71,143.68,26.30204699]
[1741137442966,0.03,143.71,143.64,80.6]
[1741137443178,0.03,143.71,143.65,26.30204699]
[1741137443179,81.8,143.7,143.65,26.30204699]
[1741137443780,81.8,143.7,143.66,26.30204699]
[1741137444085,81.8,143.7,143.65,26.30204699]
[1741137444665,81.8,143.7,143.63,6.9952]
[1741137444959,6.9594,143.69,143.64,26.30204699]
[1741137445371,108.10204699,143.68,143.63,0.033]
[1741137445688,26.30204699,143.66,143.63,0.033]
[1741137445886,26.30204699,143.65,143.63,0.033]
[1741137446084,108.38637013,143.64,143.63,0.033]
[1741137446481,26.58637013,143.64,143.63,0.033]
[1741137446979,33.54817013,143.64,143.63,0.033]
[1741137448291,7.24612314,143.64,143.63,0.033]
[1741137448496,0.28432314,143.64,143.63,0.033]
[1741137449099,38.82294699,143.66,143.63,0.033]
[1741137449597,81.8,143.65,143.63,0.033]
[1741137449763,26.58637013,143.64,143.63,0.033]
[1741137450198,12.5209,143.66,143.63,0.033]
[1741137450490,81.8,143.65,143.63,0.033]
[1741137450699,134.68637013,143.64,143.53,0.033]
[1741137450866,0.28432314,143.57,143.53,0.033]
[1741137451072,88.7659,143.56,143.53,0.033]
[1741137451673,81.8,143.56,143.53,0.033]
[1741137452285,88.7658,143.56,143.53,0.033]
[1741137452716,81.8,143.56,143.53,0.033]
[1741137453900,88.7657,143.56,143.53,0.033]
[1741137454204,0.28432314,143.55,143.53,0.033]
[1741137454388,81.8,143.54,143.53,0.033]
[1741137454586,26.58432314,143.55,143.53,0.033]
[1741137455803,6.9666,143.54,143.53,0.033]
[1741137458305,33.55297013,143.54,143.53,0.033]
[1741137459706,7.25092314,143.54,143.53,0.033]
[1741137459902,6.9666,143.54,143.53,0.033]
[1741137460803,33.55297013,143.54,143.53,0.033]
[1741137463289,108.38432314,143.53,143.49,0.033]
[1741137463503,26.58637013,143.51,143.49,0.033]
[1741137463691,26.58637013,143.5,143.49,0.033]
[1741137463898,26.58432314,143.5,143.49,0.033]
[1741137465099,33.55292314,143.5,143.49,0.033]
[1741137467114,26.3,143.5,143.49,0.033]
[1741137468486,52.60204699,143.5,143.49,0.033]
[1741137468712,59.85497013,143.5,143.49,0.033]
[1741137469225,26.58432314,143.5,143.49,0.033]
[1741137469519,59.85497013,143.5,143.49,0.033]
[1741137470517,26.3,143.5,143.49,0.033]
[1741137471110,33.55497013,143.5,143.49,0.033]
[1741137471342,59.85701712,143.5,143.49,0.033]
[1741137471502,33.55497013,143.5,143.49,0.033]
[1741137472391,32.95477013,143.49,143.39,0.033]
[1741137472723,26.30204699,143.43,143.39,0.033]
[1741137472898,26.44420856,143.44,143.39,7.0068]
[1741137473100,26.44420856,143.45,143.39,33.30884699]
[1741137473290,0.14216157,143.45,143.39,33.30884699]
[1741137473490,81.8,143.42,143.39,33.30884699]
[1741137474292,81.8,143.42,143.39,0.033]
[1741137474613,81.8,143.42,143.39,33.30884699]
[1741137475325,81.8,143.42,143.39,26.33504699]
[1741137475508,81.8,143.42,143.39,0.033]
[1741137475898,81.8,143.42,143.39,7.0068]
[1741137476400,81.8,143.42,143.39,33.30884699]
[1741137477520,81.8,143.44,143.41,26.30204699]
[1741137477728,81.8,143.47,143.43,32.64414699]
[1741137477930,81.8,143.47,143.46,26.30204699]
[1741137478105,81.8,143.51,143.46,26.30204699]
[1741137478298,0.28432314,143.5,143.45,26.30204699]
[1741137478522,26.58637013,143.5,143.44,26.30204699]
[1741137478922,26.30204699,143.49,143.43,113.24414699]
[1741137479227,108.38637013,143.5,143.44,26.30204699]
[1741137479400,6.9696,143.48,143.43,32.64414699]
[1741137479600,33.27124699,143.49,143.43,39.61604699]
[1741137479934,81.8,143.5,143.45,26.30204699]
[1741137480315,88.7686,143.5,143.44,26.30204699]
[1741137481430,115.07064699,143.5,143.44,26.30204699]
[1741137481632,81.8,143.5,143.46,26.30204699]
[1741137481806,81.8,143.5,143.45,26.30204699]
[1741137482132,115.07084699,143.5,143.44,26.30204699]
[1741137482504,81.8,143.5,143.46,26.30204699]
[1741137483316,108.13,143.53,143.48,26.30204699]
[1741137483618,0.03,143.53,143.5,26.30204699]
[1741137483843,33.29924699,143.53,143.43,113.24414699]
[1741137484041,33.29924699,143.53,143.46,26.30204699]
[1741137484406,33.29924699,143.53,143.44,6.9715]
[1741137484407,0.03,143.53,143.47,26.30204699]
[1741137484636,0.03,143.53,143.5,26.30204699]
[1741137485119,0.03,143.53,143.45,0.28432314]
[1741137485120,0.03,143.53,143.49,26.30204699]
[1741137485723,0.03,143.53,143.49,33.27104699]
[1741137486040,0.03,143.53,143.5,26.30204699]
[1741137487240,0.03,143.53,143.48,26.30204699]
[1741137487534,6.9676,143.52,143.47,46.30204699]
[1741137487712,88.7676,143.52,143.46,33.27224699]
[1741137487907,88.7676,143.52,143.47,26.30204699]
[1741137488617,81.8,143.52,143.49,26.30204699]
[1741137489038,81.8,143.52,143.48,26.30204699]
[1741137489830,81.8,143.52,143.47,33.27174699]
[1741137490243,115.06974699,143.52,143.46,26.33504699]
[1741137490541,115.06974699,143.52,143.46,0.033]
[1741137490716,26.58637013,143.51,143.46,0.033]
[1741137490916,26.30204699,143.5,143.46,0.033]
[1741137491843,6.9691,143.49,143.46,0.033]
[1741137492031,81.8,143.48,143.46,0.033]
[1741137493628,88.7699,143.48,143.46,0.033]
[1741137493944,82.08432314,143.47,143.46,0.033]
[1741137494116,108.38637013,143.47,143.46,0.033]
[1741137494318,26.58637013,143.47,143.46,0.033]
[1741137496019,33.55637013,143.47,143.46,0.033]
[1741137496533,33.55637013,143.47,143.39,0.033]
[1741137496534,0.28432314,143.43,143.39,0.033]
[1741137496736,26.30204699,143.41,143.39,0.033]
[1741137497554,6.9735,143.4,143.39,0.033]
[1741137498646,26.30204699,143.41,143.39,0.033]
[1741137498824,6.9725,143.42,143.39,0.033]
[1741137499024,13.69622314,143.43,143.39,0.033]
[1741137499225,39.99827013,143.43,143.39,0.033]
[1741137501845,81.8,143.42,143.39,0.033]
[1741137502228,88.7725,143.42,143.39,0.033]
[1741137502423,81.8,143.42,143.39,0.033]
[1741137502626,81.8,143.44,143.41,26.30204699]
[1741137502940,81.8,143.44,143.39,0.033]
[1741137503119,26.58637013,143.43,143.39,0.033]
[1741137503640,0.28432314,143.43,143.39,0.033]
[1741137503857,115.07374699,143.44,143.39,0.033]
[1741137504040,88.7717,143.44,143.39,0.033]
[1741137504233,88.7717,143.44,143.39,26.33504699]
[1741137504431,81.8,143.44,143.41,26.30204699]
[1741137504945,81.8,143.44,143.42,26.30204699]
[1741137505153,81.8,143.47,143.42,26.30204699]
[1741137505331,81.8,143.46,143.42,26.30204699]
[1741137505735,81.8,143.46,143.43,26.30204699]
[1741137505946,81.8,143.48,143.43,26.30204699]
[1741137506119,88.7697,143.48,143.43,26.30204699]
[1741137507156,88.7697,143.48,143.42,33.27444699]
[1741137507328,115.07174699,143.48,143.41,6.9728]
[1741137507528,26.58637013,143.47,143.41,26.30204699]
[1741137508523,26.58637013,143.47,143.41,33.27504699]
[1741137509434,6.9705,143.46,143.41,26.30204699]
[1741137509854,6.9705,143.46,143.41,33.27484699]
[1741137510154,6.9705,143.46,143.41,26.30204699]
[1741137510320,6.9705,143.46,143.41,33.27504699]
[1741137510526,6.9705,143.46,143.41,26.30204699]
[1741137510855,33.55657013,143.47,143.41,33.27504699]
[1741137511149,81.8,143.46,143.41,26.30204699]
[1741137511360,81.8,143.46,143.39,0.033]
[1741137511361,26.58637013,143.45,143.39,0.033]
[1741137511649,88.7715,143.44,143.39,26.33504699]
[1741137512155,81.8,143.44,143.39,26.33504699]
[1741137513260,81.8,143.44,143.39,33.30854699]
[1741137513866,81.8,143.43,143.39,26.33504699]
[1741137514033,26.30204699,143.4,143.39,0.033]
[1741137515242,26.58637013,143.4,143.39,0.033]
[1741137515552,33.55987013,143.4,143.39,0.033]
[1741137515956,26.58432314,143.39,143.38,0.033]
[1741137516165,52.88637013,143.39,143.34,0.033]
[1741137516329,26.30204699,143.35,143.34,0.033]
[1741137516530,26.58637013,143.36,143.34,0.033]
[1741137517028,26.30204699,143.35,143.34,0.033]
[1741137517460,33.56227013,143.35,143.34,0.033]
[1741137517625,26.58637013,143.35,143.34,0.033]
[1741137517827,26.30204699,143.35,143.34,0.033]
[1741137518026,52.60204699,143.36,143.34,0.033]
[1741137518228,26.58637013,143.35,143.34,0.033]
[1741137518661,26.3,143.36,143.34,0.033]
[1741137522347,26.30204699,143.38,143.34,0.033]
[1741137522663,81.8,143.37,143.34,0.033]
[1741137523039,81.8,143.39,143.35,26.30204699]
[1741137523660,81.8,143.39,143.34,26.33504699]
[1741137523886,81.8,143.39,143.34,33.31124699]
[1741137524243,108.10204699,143.39,143.34,7.0092]
[1741137524736,81.8,143.39,143.34,33.31124699]
[1741137524943,115.07604699,143.39,143.34,0.033]
[1741137525144,26.58637013,143.38,143.34,0.033]
[1741137525337,81.8,143.37,143.34,0.033]
[1741137525955,81.8,143.37,143.34,7.0092]
[1741137526576,81.8,143.37,143.34,23.40843099]
[1741137526863,81.8,143.37,143.34,7.0092]
[1741137528967,98.19923099,143.39,143.34,7.0092]
[1741137529375,81.8,143.39,143.34,7.0092]
[1741137530174,81.8,143.39,143.34,23.40843099]
[1741137530375,81.8,143.39,143.35,16.39923099]
[1741137530572,81.8,143.39,143.34,23.40843099]
[1741137530769,105.17333099,143.39,143.34,0.033]
[1741137533278,88.7746,143.38,143.34,0.033]
[1741137533455,16.39923099,143.37,143.34,0.033]
[1741137533972,105.17383099,143.38,143.34,0.033]
[1741137534572,16.39923099,143.37,143.34,0.033]
[1741137535275,0.28432314,143.37,143.34,0.033]
[1741137535577,81.8,143.36,143.34,0.033]
[1741137535778,98.48355413,143.35,143.34,0.033]
[1741137536086,16.68355413,143.35,143.34,0.033]
[1741137536459,22.80645413,143.35,143.34,0.033]
[1741137536657,22.80645413,143.35,143.33,0.033]
[1741137536883,16.68355413,143.34,143.33,0.033]
[1741137537057,16.68355413,143.34,143.33,0.0001]
[1741137537376,0.28432314,143.25,143.24,0.033]
[1741137537576,22.26355413,143.25,143.24,0.033]
[1741137539281,29.24435413,143.25,143.24,0.033]
[1741137539463,22.26355413,143.25,143.24,0.033]
[1741137540075,22.26355413,143.25,143.19,0.033]
[1741137540385,16.68355413,143.22,143.19,0.033]
[1741137540681,16.39923099,143.21,143.19,0.033]
[1741137540886,16.68355413,143.2,143.19,0.033]
[1741137544158,0.28432314,143.2,143.19,0.033]
[1741137544359,16.68355413,143.2,143.19,0.033]
[1741137545887,16.39923099,143.2,143.19,0.033]
[1741137546565,98.19923099,143.2,143.19,0.033]
[1741137546766,98.48355413,143.2,143.19,0.033]
[1741137547165,98.19923099,143.2,143.19,0.033]
[1741137547366,81.8,143.2,143.19,0.033]
[1741137549295,16.39923099,143.23,143.19,0.033]
[1741137549470,81.8,143.23,143.19,0.033]
[1741137550191,81.8,143.23,143.19,23.41593099]
[1741137550397,81.8,143.23,143.19,0.033]
[1741137551195,98.19923099,143.23,143.19,0.033]
[1741137553486,16.39923099,143.23,143.19,0.033]
[1741137554287,16.39923099,143.21,143.19,0.033]
[1741137555395,16.39923099,143.22,143.19,0.033]
[1741137556099,16.39923099,143.23,143.19,0.033]
[1741137556475,16.39923099,143.22,143.19,0.033]
[1741137557071,16.39923099,143.23,143.19,0.033]
[1741137557804,16.42923099,143.24,143.19,0.033]
[1741137558006,0.03,143.24,143.19,16.43223099]
[1741137558184,23.41063099,143.24,143.19,0.033]
[1741137558380,16.39923099,143.22,143.19,0.033]
[1741137558785,23.38213099,143.21,143.19,0.033]
[1741137559098,16.39923099,143.2,143.19,0.033]
[1741137559810,23.38213099,143.21,143.19,0.033]
[1741137560109,16.39923099,143.22,143.19,0.033]
[1741137560291,16.68355413,143.23,143.19,0.033]
[1741137560606,16.39923099,143.22,143.19,0.033]
[1741137560795,16.39923099,143.23,143.19,0.033]
[1741137560999,105.21063099,143.24,143.19,0.033]
[1741137561300,98.22923099,143.24,143.19,0.033]
[1741137561690,0.03,143.24,143.2,16.39923099]
[1741137561889,0.03,143.24,143.19,16.43223099]
[1741137562095,23.41063099,143.24,143.19,0.033]
[1741137564302,16.39923099,143.23,143.19,0.033]
[1741137565405,16.39923099,143.21,143.19,0.033]
[1741137565602,6.9817,143.23,143.19,0.033]
[1741137565603,16.39923099,143.2,143.19,0.033]
[1741137567619,16.39923099,143.21,143.19,0.033]
[1741137567912,16.39923099,143.2,143.19,0.033]
[1741137569127,23.38243099,143.2,143.19,0.033]
[1741137570711,6.9832,143.2,143.19,0.033]
[1741137570910,23.38243099,143.2,143.19,0.033]
[1741137571720,81.8,143.21,143.19,0.033]
[1741137573021,81.8,143.23,143.19,0.033]
[1741137573923,16.39923099,143.22,143.19,0.033]
[1741137574912,16.39923099,143.2,143.19,0.033]
[1741137575108,23.38243099,143.2,143.19,0.033]
[1741137576801,6.9832,143.2,143.19,0.033]
[1741137577003,81.8,143.21,143.19,0.033]
[1741137578407,105.18223099,143.21,143.19,0.033]
[1741137578604,98.19923099,143.21,143.19,0.033]
[1741137578933,81.8,143.21,143.19,0.033]
[1741137579824,81.8,143.23,143.19,0.033]
[1741137580333,105.18103099,143.23,143.19,0.033]
[1741137580826,16.39923099,143.22,143.19,0.033]
[1741137581023,23.38233099,143.21,143.19,0.033]
[1741137582010,16.68355413,143.2,143.19,0.033]
[1741137583114,23.66675413,143.2,143.19,0.033]
[1741137583622,49.96675413,143.2,143.19,0.033]
[1741137584012,108.38432314,143.19,143.18,0.0001]
[1741137584336,16.68355413,143.19,143.18,0.0001]
[1741137584630,0.28432314,143.15,143.12,0.033]
[1741137584807,16.68355413,143.13,143.12,0.033]
[1741137585201,23.67015413,143.13,143.12,0.033]
[1741137586438,23.67015413,143.13,143.12,0.0001]
[1741137589920,41.13675413,143.13,143.08,0.033]
[1741137590161,16.68355413,143.09,143.08,0.033]
[1741137590518,16.39923099,143.06,143.05,0.033]
[1741137590730,16.39923099,143.07,143.05,0.033]
[1741137590941,16.39923099,143.08,143.05,0.033]
[1741137591246,0.28432314,143.07,143.05,0.033]
[1741137591546,6.99,143.06,143.05,0.033]
[1741137591744,15.66373406,143.12,143.05,0.033]
[1741137591745,6.9897,143.07,143.05,0.033]
[1741137592523,16.39923099,143.1,143.05,0.033]
[1741137592731,6.9886,143.09,143.05,0.033]
[1741137593450,40.85933099,143.09,143.05,0.033]
[1741137593961,24.4601,143.09,143.05,0.033]
[1741137594333,40.85933099,143.09,143.05,0.033]
[1741137594643,24.4601,143.09,143.05,0.033]
[1741137595124,40.85933099,143.09,143.05,0.033]
[1741137595748,24.4601,143.09,143.05,0.033]
[1741137596655,6.9876,143.11,143.06,16.39923099]
[1741137597322,23.38683099,143.11,143.05,16.43223099]
[1741137597750,16.39923099,143.1,143.05,0.033]
[1741137598248,23.38683099,143.11,143.05,16.43223099]
[1741137598927,6.9876,143.11,143.06,16.39923099]
[1741137599655,105.47075413,143.12,143.06,16.39923099]
[1741137600159,81.8,143.11,143.06,16.39923099]
[1741137600327,88.8168,143.13,143.08,16.39923099]
[1741137600528,81.83,143.13,143.09,16.39923099]
[1741137602139,88.8166,143.13,143.09,16.39923099]
[1741137602639,88.8166,143.13,143.11,16.39923099]
[1741137602640,0.03,143.13,143.11,16.39923099]
[1741137603557,0.03,143.13,143.12,16.39923099]
[1741137604067,0.03,143.13,143.12,23.38633099]
[1741137605072,0.03,143.13,143.12,16.39923099]
[1741137605779,0.03,143.13,143.12,103.98633099]
[1741137605943,0.03,143.13,143.12,110.10733099]
[1741137606251,0.03,143.13,143.12,103.12023099]
[1741137606650,23.38193099,143.21,143.12,110.39165413]
[1741137606852,88.7824,143.22,143.17,16.39923099]
[1741137607057,16.39923099,143.21,143.16,16.39923099]
[1741137607574,16.39923099,143.21,143.15,36.39923099]
[1741137607871,105.46595413,143.22,143.16,16.39923099]
[1741137608078,105.18163099,143.22,143.16,16.39923099]
[1741137608371,81.8,143.22,143.18,16.39923099]
[1741137608747,88.7823,143.22,143.18,16.39923099]
[1741137610152,88.7823,143.22,143.17,16.39923099]
[1741137610680,88.7823,143.22,143.18,16.39923099]
[1741137610860,6.9823,143.22,143.18,16.39923099]
[1741137611050,98.22923099,143.24,143.18,16.39923099]
[1741137611253,23.38093099,143.23,143.18,16.39923099]
[1741137612075,23.38093099,143.23,143.2,16.39923099]
[1741137612076,6.9817,143.23,143.2,16.39923099]
[1741137612284,6.9817,143.23,143.19,16.39923099]
[1741137613654,6.9817,143.23,143.2,16.39923099]
[1741137614168,6.9817,143.23,143.21,16.39923099]
[1741137614862,6.9817,143.23,143.2,16.39923099]
[1741137616072,0.03,143.24,143.22,16.39923099]
[1741137616270,7.0112,143.24,143.21,16.39923099]
[1741137616489,7.0112,143.24,143.2,80.6]
[1741137617277,7.0112,143.24,143.2,96.99923099]
[1741137617452,0.03,143.24,143.21,16.39923099]
[1741137617978,0.03,143.24,143.23,16.39923099]
[1741137620881,0.03,143.24,143.23,23.38093099]
[1741137622676,0.03,143.24,143.23,16.39923099]
[1741137623468,0.03,143.24,143.23,23.38093099]
[1741137623785,0.03,143.24,143.23,23.66525413]
[1741137623965,0.03,143.24,143.23,105.92915413]
[1741137624659,81.8,143.34,143.26,20.0]
[1741137624866,16.42923099,143.37,143.32,16.39923099]
[1741137625060,0.03,143.37,143.34,16.39923099]
[1741137625585,0.03,143.37,143.32,16.39923099]
[1741137625966,0.03,143.37,143.33,16.39923099]
[1741137627390,0.03,143.37,143.35,16.39923099]
[1741137627965,0.03,143.37,143.34,16.39923099]
[1741137628189,0.03,143.37,143.33,16.39923099]
[1741137629492,0.03,143.37,143.34,16.39923099]
[1741137631990,0.03,143.37,143.33,16.39923099]
[1741137632190,6.9759,143.35,143.29,80.6]
[1741137632492,23.37513099,143.35,143.3,16.39923099]
[1741137632899,23.37483099,143.36,143.3,16.39923099]
[1741137633103,16.42923099,143.37,143.31,16.39923099]
[1741137633265,0.03,143.37,143.33,16.39923099]
[1741137633472,0.03,143.37,143.34,16.39923099]
[1741137633695,0.03,143.37,143.35,16.39923099]
[1741137634496,0.03,143.37,143.34,16.39923099]
[1741137634671,0.03,143.37,143.33,16.39923099]
[1741137634995,0.03,143.37,143.32,16.39923099]
[1741137635179,16.39923099,143.36,143.31,16.39923099]
[1741137635497,81.83,143.37,143.33,16.39923099]
[1741137635684,81.83,143.37,143.34,16.39923099]
[1741137636176,0.03,143.37,143.34,16.39923099]
[1741137636519,0.03,143.35,143.34,16.39923099]
[1741137636791,0.03,143.35,143.33,10.49582117]
[1741137637178,0.03,143.35,143.32,10.49582117]
[1741137638299,0.03,143.35,143.33,10.49582117]
[1741137638505,0.03,143.35,143.34,10.49582117]
[1741137638672,0.03,143.35,143.34,17.47222117]
[1741137640517,0.03,143.35,143.34,36.39717782]
[1741137641010,0.03,143.37,143.36,6.5491]
[1741137641191,0.03,143.46,143.4,20.0]
[1741137641387,0.03,143.46,143.45,16.39717782]
[1741137643884,0.03,143.46,143.44,16.39717782]
[1741137644112,0.03,143.46,143.42,16.39717782]
[1741137644411,0.03,143.46,143.4,100.6]
[1741137644615,6.971,143.45,143.41,16.39717782]
[1741137644821,23.36817782,143.45,143.4,16.39717782]
[1741137645488,6.971,143.45,143.4,16.39717782]
[1741137646020,6.971,143.45,143.42,16.39717782]
[1741137646313,6.1382,143.46,143.44,16.39717782]
[1741137646314,0.03,143.46,143.44,16.39717782]
[1741137646528,0.03,143.46,143.45,16.39717782]
[1741137648114,0.03,143.46,143.45,23.36817782]
[1741137648314,0.03,143.46,143.45,16.39717782]
[1741137651528,0.03,143.46,143.45,103.96817782]
[1741137652721,0.03,143.46,143.45,96.99717782]
[1741137653612,0.03,143.46,143.45,16.39717782]
[1741137653917,0.03,143.46,143.44,16.39717782]
[1741137654622,0.03,143.46,143.45,16.39717782]
[1741137658628,0.03,143.46,143.42,80.6]
[1741137658923,0.03,143.46,143.4,6.9735]
[1741137659220,0.03,143.46,143.43,16.39717782]
[1741137660423,0.03,143.46,143.45,16.39717782]
[1741137661722,0.03,143.46,143.43,80.6]
[1741137661928,0.03,143.46,143.42,23.36927782]
[1741137662532,0.03,143.46,143.45,16.39717782]
[1741137664210,0.03,143.53,143.48,20.0]
[1741137664404,0.03,143.53,143.52,16.39717782]
[1741137666630,0.03,143.53,143.52,23.36477782]
[1741137667003,0.03,143.53,143.52,16.39717782]
[1741137667218,0.03,143.53,143.52,96.99717782]
[1741137667909,0.03,143.53,143.51,16.39717782]
[1741137668536,0.03,143.53,143.52,16.39717782]
[1741137669938,0.03,143.53,143.5,16.39717782]
[1741137670146,0.03,143.53,143.48,16.39717782]
[1741137670333,6.9971,143.53,143.49,16.39717782]
[1741137670538,6.9971,143.53,143.5,16.39717782]
[1741137671044,6.9971,143.53,143.49,16.39717782]
[1741137671344,6.9971,143.53,143.5,16.39717782]
[1741137671553,0.03,143.53,143.51,16.39717782]
[1741137672425,0.03,143.53,143.52,16.39717782]
[1741137673817,0.03,143.53,143.51,16.39717782]
[1741137674019,0.03,143.53,143.5,16.39717782]
[1741137674318,0.03,143.53,143.51,16.39717782]
[1741137675013,0.03,143.53,143.5,16.39717782]
[1741137675335,0.03,143.53,143.49,16.39717782]
[1741137675536,0.03,143.53,143.48,16.39717782]
[1741137675921,0.03,143.53,143.49,16.39717782]
[1741137676239,0.03,143.53,143.48,16.39717782]
[1741137676606,6.9971,143.53,143.48,16.39717782]
[1741137677852,24.415,143.53,143.48,16.39717782]
[1741137678035,6.9971,143.53,143.48,16.39717782]
[1741137679347,6.9971,143.53,143.49,16.39717782]
[1741137679348,0.03,143.53,143.49,16.39717782]
[1741137679547,0.03,143.53,143.5,16.39717782]
[1741137679933,0.03,143.53,143.52,16.39717782]
[1741137680128,0.03,143.53,143.52,96.99717782]
[1741137680753,0.03,143.53,143.52,103.96477782]
[1741137681050,0.03,143.53,143.52,96.99717782]
[1741137682032,0.03,143.53,143.52,103.96477782]
[1741137682232,0.03,143.53,143.52,96.99717782]
[1741137682432,0.03,143.53,143.52,103.96477782]
[1741137683352,6.3678,143.6,143.55,20.0]
[1741137683539,0.03,143.61,143.57,16.39717782]
[1741137684860,0.03,143.61,143.58,16.39717782]
[1741137685036,0.03,143.61,143.59,16.39717782]
[1741137685951,0.03,143.61,143.57,16.39717782]
[1741137686259,24.16457782,143.6,143.51,81.6]
[1741137686463,105.96457782,143.6,143.53,16.39717782]
[1741137686665,16.39717782,143.58,143.52,16.39717782]
[1741137686951,23.36237782,143.57,143.51,97.99717782]
[1741137687155,40.77547782,143.57,143.47,85.06682184]
[1741137687327,16.39717782,143.56,143.5,36.39717782]
[1741137687526,16.39717782,143.56,143.5,16.39717782]
[1741137688664,110.70237782,143.57,143.51,16.39717782]
[1741137688962,16.39717782,143.56,143.5,16.39717782]
[1741137690945,6.9662,143.55,143.5,16.39717782]
[1741137692063,6.9662,143.55,143.49,16.39717782]
[1741137692235,16.39717782,143.54,143.48,16.39717782]
[1741137692758,16.39717782,143.54,143.47,97.99717782]
[1741137692959,122.57887782,143.55,143.48,16.39717782]
[1741137693154,122.57887782,143.55,143.49,16.39717782]
[1741137693355,106.1817,143.55,143.49,16.39717782]
[1741137693868,122.57887782,143.55,143.49,16.39717782]
[1741137694036,106.1817,143.55,143.49,16.39717782]
[1741137694237,16.39717782,143.54,143.47,81.6]
[1741137694464,16.39717782,143.54,143.48,16.39717782]
[1741137695157,8.4682,143.53,143.48,16.39717782]
[1741137695653,8.4682,143.53,143.47,81.6]
[1741137695849,8.4682,143.53,143.49,16.39717782]
[1741137696355,8.4682,143.53,143.48,16.39717782]
[1741137696583,8.4682,143.53,143.49,16.39717782]
[1741137696861,6.9667,143.54,143.5,16.39717782]
[1741137698542,6.9963,143.55,143.5,16.39717782]
[1741137699452,0.03,143.55,143.53,16.39717782]
[1741137699652,0.03,143.55,143.5,81.6]
[1741137699653,0.03,143.55,143.54,16.39717782]
[1741137703259,16.42717782,143.55,143.5,81.6]
[1741137703438,16.39717782,143.54,143.48,81.6]
[1741137703641,16.39717782,143.54,143.48,97.99717782]
[1741137703856,16.42717782,143.55,143.49,16.39717782]
[1741137704766,16.42717782,143.55,143.48,104.96667782]
[1741137704972,24.32217782,143.53,143.46,81.633]
[1741137705163,6.9676,143.52,143.47,16.39717782]
[1741137705966,6.9676,143.52,143.47,16.43017782]
[1741137706280,23.36477782,143.52,143.47,0.033]
[1741137707156,20.4322,143.53,143.48,16.39717782]
[1741137707469,20.4322,143.53,143.49,16.39717782]
[1741137707848,13.465,143.53,143.49,16.39717782]
[1741137708740,7.2003,143.53,143.49,16.39717782]